bitfinex/quotes_BTCUSD_20220202
["timestamp","ask_amount","ask_price","bid_price","bid_amount"]
[1643822443092,0.25397562,37436.0,37430.0,0.24837554]
[1643822443294,0.23771106,37436.0,37430.0,0.24837554]
[1643822443497,0.23371257,37436.0,37427.0,0.41657146]
[1643822443693,0.23148138,37437.0,37427.0,0.41657146]
[1643822443893,0.25266958,37438.0,37430.0,0.00052411]
[1643822444192,0.00014051,37439.0,37430.0,0.00052411]
[1643822444393,0.00014051,37439.0,37431.0,0.24665576]
[1643822444793,0.00014051,37439.0,37431.0,0.34665576]
[1643822445093,0.00014051,37439.0,37434.0,0.09631391]
[1643822445696,0.00014051,37439.0,37434.0,0.16310291]
[1643822445951,0.00014051,37439.0,37432.0,0.1]
[1643822446254,0.2393746,37439.0,37432.0,0.35260247]
[1643822446455,1.91798346,37438.0,37432.0,0.25260247]
[1643822446648,0.2393746,37439.0,37432.0,0.25260247]
[1643822446849,0.47418142,37439.0,37432.0,0.25260247]
[1643822447050,0.2393746,37439.0,37432.0,0.25260247]
[1643822447550,0.23563645,37438.0,37430.0,0.053928]
[1643822448254,0.23563645,37438.0,37430.0,0.0534]
[1643822448451,0.23563645,37438.0,37430.0,0.053928]
[1643822448651,0.23563645,37438.0,37431.0,0.2137556]
[1643822448856,0.20624411,37439.0,37431.0,0.2137556]
[1643822449055,0.00014024,37438.0,37431.0,0.2137556]
[1643822449254,0.00014024,37438.0,37430.0,0.153928]
[1643822449456,0.00014024,37438.0,37430.0,0.1534]
[1643822449706,0.00014024,37438.0,37430.0,0.15396502]
[1643822450208,0.42595255,37439.0,37430.0,0.05396502]
[1643822450409,0.42595255,37439.0,37432.0,0.28068617]
[1643822450611,0.23421589,37439.0,37432.0,0.28068617]
[1643822450810,0.23421589,37439.0,37430.0,0.00056502]
[1643822450811,0.28421589,37439.0,37427.0,0.44747472]
[1643822451009,0.62339856,37439.0,37430.0,0.0001695]
[1643822451809,0.5897103,37438.0,37430.0,0.20473878]
[1643822452008,0.338882,37438.0,37430.0,0.2721058]
[1643822452209,0.28693842,37439.0,37430.0,0.2721058]
[1643822452810,0.23693842,37439.0,37430.0,0.2721058]
[1643822453110,0.23693842,37439.0,37430.0,0.27154078]
[1643822453310,0.23693842,37439.0,37430.0,0.2721058]
[1643822454245,0.00012622,37438.0,37430.0,0.27154078]
[1643822454446,0.00012622,37438.0,37430.0,0.2721058]
[1643822455445,0.00012622,37438.0,37430.0,0.27154078]
[1643822455645,0.00012622,37438.0,37433.0,0.07921297]
[1643822456246,0.00012622,37438.0,37431.0,0.1]
[1643822457296,0.00012622,37438.0,37430.0,0.36174847]
[1643822457496,0.00012622,37438.0,37430.0,0.27206266]
[1643822457899,0.00012622,37438.0,37430.0,0.27154078]
[1643822458197,0.00012622,37438.0,37430.0,0.27206266]
[1643822458999,0.00012622,37438.0,37432.0,0.07723289]
[1643822459700,0.00012622,37438.0,37433.0,0.3123224]
[1643822459903,0.00012622,37438.0,37434.0,0.036896]
[1643822460100,0.00012622,37438.0,37436.0,0.6674]
[1643822460302,0.00012622,37438.0,37437.0,1.840288]
[1643822460502,0.00012622,37438.0,37437.0,2.1492104]
[1643822460700,0.00012622,37438.0,37437.0,1.89772856]
[1643822460948,0.00056664,37443.0,37437.0,1.89772856]
[1643822460949,0.00056664,37443.0,37440.0,0.133525]
[1643822461246,0.00056664,37443.0,37442.0,1.94249274]
[1643822461446,0.00056664,37443.0,37442.0,2.34731492]
[1643822461650,0.00522086,37448.0,37442.0,3.38882548]
[1643822461849,0.02002845,37450.0,37444.0,0.1]
[1643822462046,0.00552565,37450.0,37447.0,0.8009]
[1643822462244,0.00552565,37450.0,37449.0,1.26046261]
[1643822462445,0.00552565,37450.0,37449.0,1.71366787]
[1643822462644,0.00552565,37450.0,37449.0,1.82817067]
[1643822462843,0.00552565,37450.0,37449.0,2.18038879]
[1643822463246,0.00552565,37450.0,37449.0,2.12698879]
[1643822463444,0.00552565,37450.0,37449.0,2.02613627]
[1643822463645,0.00552565,37450.0,37449.0,0.46345554]
[1643822464145,0.00552565,37450.0,37449.0,0.2013578]
[1643822464346,0.00552565,37450.0,37449.0,1.26845866]
[1643822464548,0.00552565,37450.0,37449.0,1.69053927]
[1643822464996,0.00552565,37450.0,37449.0,2.61926341]
[1643822465193,0.00552565,37450.0,37449.0,2.87731766]
[1643822465394,0.00552565,37450.0,37449.0,1.87731766]
[1643822465596,0.00552565,37450.0,37449.0,1.5441325]
[1643822465995,0.00552565,37450.0,37449.0,1.08607825]
[1643822466196,0.00552565,37450.0,37449.0,0.7721578]
[1643822467498,0.00552565,37450.0,37449.0,0.0145028]
[1643822467898,0.00056622,37451.0,37443.0,0.066779]
[1643822468298,0.67163032,37449.0,37443.0,0.32864245]
[1643822468753,0.67163032,37449.0,37443.0,0.066779]
[1643822469150,0.00056623,37448.0,37443.0,0.066779]
[1643822469350,0.00056623,37448.0,37439.0,0.186958]
[1643822469549,0.67163032,37449.0,37439.0,0.186958]
[1643822469550,0.66719655,37449.0,37439.0,0.186958]
[1643822469754,0.44064674,37448.0,37440.0,0.22255807]
[1643822471352,0.38174464,37443.0,37442.0,0.00016988]
[1643822471554,0.68451137,37443.0,37442.0,0.00016988]
[1643822471756,0.54186114,37443.0,37442.0,0.00016988]
[1643822471956,0.89714586,37443.0,37442.0,0.00016988]
[1643822472402,0.89312199,37443.0,37437.0,0.133566]
[1643822472597,0.89312199,37443.0,37441.0,0.00016988]
[1643822472796,2.13808439,37442.0,37441.0,0.00016988]
[1643822472997,2.88933439,37442.0,37441.0,0.00016988]
[1643822473197,2.93933439,37442.0,37441.0,0.00016988]
[1643822473596,2.88933439,37442.0,37436.0,0.02019446]
[1643822473796,0.9770426,37441.0,37440.0,0.00056629]
[1643822473996,2.03304572,37441.0,37440.0,0.00056629]
[1643822474198,1.7782926,37441.0,37440.0,0.00056629]
[1643822474905,0.80125,37441.0,37436.0,0.02019446]
[1643822475096,0.80125,37441.0,37439.0,0.00056631]
[1643822476153,0.80125,37441.0,37438.0,0.49811689]
[1643822476353,0.80125,37441.0,37439.0,0.036881]
[1643822476955,0.80125,37441.0,37439.0,0.090281]
[1643822477151,0.80125,37441.0,37439.0,0.0534]
[1643822478754,0.80125,37441.0,37440.0,0.08312795]
[1643822479998,0.80125,37441.0,37439.0,0.05396631]
[1643822480797,0.80125,37441.0,37439.0,0.0534]
[1643822481196,0.77625,37441.0,37439.0,0.0534]
[1643822482599,1.14965463,37441.0,37439.0,0.0534]
[1643822484043,0.00012054,37440.0,37439.0,0.0534]
[1643822484645,0.231191,37440.0,37439.0,0.0534]
[1643822484948,0.00012054,37440.0,37438.0,0.00056632]
[1643822485544,0.00012054,37440.0,37435.0,0.23578493]
[1643822485545,0.00012054,37440.0,37435.0,0.30257593]
[1643822485747,0.00012054,37440.0,37437.0,0.00056633]
[1643822486846,0.00012054,37440.0,37432.0,0.133579]
[1643822487047,0.00012054,37440.0,37437.0,0.00056492]
[1643822488096,0.00012054,37440.0,37434.0,0.22054504]
[1643822488296,0.00012054,37440.0,37437.0,0.00056492]
[1643822488697,0.62192353,37438.0,37437.0,0.00056492]
[1643822488896,0.86298783,37438.0,37437.0,0.00056492]
[1643822489096,0.86298783,37438.0,37437.0,0.00048693]
[1643822489298,1.21695883,37438.0,37428.0,0.11968068]
[1643822489497,0.86298783,37438.0,37436.0,0.00056494]
[1643822489697,1.61412812,37437.0,37436.0,0.00056494]
[1643822489897,1.26015712,37437.0,37436.0,0.00056494]
[1643822490296,1.58733656,37437.0,37436.0,0.00056494]
[1643822490506,0.24216935,37430.0,37429.0,0.1]
[1643822490698,0.24216935,37430.0,37429.0,0.73757874]
[1643822490947,0.24216935,37430.0,37429.0,0.13757874]
[1643822491148,0.24216935,37430.0,37429.0,0.00067974]
[1643822491549,0.24216935,37430.0,37426.0,0.133597]
[1643822491955,0.24216935,37430.0,37428.0,0.00016994]
[1643822492850,0.24216935,37430.0,37426.0,0.133597]
[1643822493054,0.24216935,37430.0,37427.0,0.00056629]
[1643822493656,0.22992637,37429.0,37427.0,0.00056629]
[1643822493852,0.24216935,37430.0,37427.0,0.00056629]
[1643822494052,0.24228721,37430.0,37426.0,0.133597]
[1643822494251,0.24228721,37430.0,37426.0,0.13412108]
[1643822494701,0.24228721,37430.0,37426.0,0.40571652]
[1643822495305,0.24228721,37430.0,37427.0,0.1]
[1643822495707,0.24228721,37430.0,37426.0,0.13412108]
[1643822496103,0.24228721,37430.0,37427.0,0.036912]
[1643822496905,0.24228721,37430.0,37427.0,0.30814975]
[1643822497104,0.24228721,37430.0,37427.0,0.36822913]
[1643822497312,0.00011786,37430.0,37428.0,0.136912]
[1643822497506,0.00011786,37430.0,37429.0,1.28691]
[1643822497708,0.00011786,37430.0,37429.0,1.38691]
[1643822498108,0.00011786,37430.0,37429.0,1.28691]
[1643822498310,0.00011786,37430.0,37429.0,1.38691]
[1643822498771,0.00011786,37430.0,37429.0,1.28691]
[1643822499269,0.23443052,37435.0,37430.0,0.066797]
[1643822499468,0.23525065,37435.0,37430.0,0.066797]
[1643822499668,3.01451271,37435.0,37430.0,0.066797]
[1643822499968,0.26865383,37436.0,37430.0,0.066797]
[1643822499969,0.22835528,37434.0,37430.0,0.066797]
[1643822500371,0.22835528,37434.0,37431.0,0.00056623]
[1643822500975,0.50293303,37434.0,37431.0,0.00056623]
[1643822501170,0.50293303,37434.0,37430.0,0.066797]
[1643822501875,0.26865383,37436.0,37430.0,0.066797]
[1643822502072,0.26691998,37436.0,37430.0,0.066797]
[1643822502302,0.22873866,37435.0,37430.0,0.066797]
[1643822502702,0.23622954,37433.0,37430.0,0.066797]
[1643822503305,0.22873866,37435.0,37430.0,0.066797]
[1643822503905,0.00011759,37436.0,37430.0,0.066797]
[1643822504103,0.02791151,37440.0,37431.0,0.0534]
[1643822504104,0.00011866,37433.0,37431.0,0.0534]
[1643822504303,0.26215534,37440.0,37433.0,0.22377287]
[1643822504604,0.02758102,37440.0,37433.0,0.27717287]
[1643822505003,0.24102843,37438.0,37433.0,0.27717287]
[1643822505205,0.24102843,37438.0,37435.0,0.00056521]
[1643822505403,0.24102843,37438.0,37435.0,0.08051313]
[1643822506054,0.24102843,37438.0,37435.0,0.07994792]
[1643822506251,0.24102843,37438.0,37433.0,0.24243226]
[1643822506453,0.24102843,37438.0,37435.0,0.00066386]
[1643822507152,0.29102843,37438.0,37435.0,0.00066386]
[1643822507351,0.29102843,37438.0,37435.0,0.000101]
[1643822507554,0.29102843,37438.0,37435.0,0.00066386]
[1643822508054,0.353971,37437.0,37435.0,0.00066386]
[1643822508256,0.29102843,37438.0,37435.0,0.00066386]
[1643822508557,0.77625,37436.0,37435.0,0.000101]
[1643822511206,0.82625,37436.0,37435.0,0.000101]
[1643822511802,0.77625,37436.0,37435.0,0.000101]
[1643822512402,0.77217261,37436.0,37435.0,0.000101]
[1643822514558,0.77228621,37436.0,37435.0,0.000101]
[1643822515358,0.77228621,37436.0,37435.0,0.350101]
[1643822515559,0.77228621,37436.0,37435.0,0.503501]
[1643822515761,0.77228621,37436.0,37435.0,0.540393]
[1643822516364,0.77228621,37436.0,37435.0,1.290393]
[1643822517297,0.77228621,37436.0,37435.0,0.540393]
[1643822517499,0.77228621,37436.0,37435.0,0.607175]
[1643822517698,0.77228621,37436.0,37435.0,0.540393]
[1643822518098,0.77228621,37436.0,37435.0,0.090393]
[1643822518301,0.77228621,37436.0,37435.0,0.053501]
[1643822518498,0.77228621,37436.0,37435.0,0.000101]
[1643822519398,0.77192363,37436.0,37435.0,0.000101]
[1643822522055,0.77192363,37436.0,37435.0,0.053501]
[1643822524058,0.77192363,37436.0,37435.0,0.090394]
[1643822525096,0.77192363,37436.0,37435.0,0.053501]
[1643822530856,0.77192363,37436.0,37435.0,0.34365498]
[1643822531059,0.77192363,37436.0,37435.0,0.090394]
[1643822531254,0.77192363,37436.0,37435.0,1.090394]
[1643822531759,0.77192363,37436.0,37435.0,1.6683966]
[1643822531960,0.77192363,37436.0,37435.0,1.7183966]
[1643822532217,0.44109314,37447.0,37436.0,1.65]
[1643822532416,0.44109314,37447.0,37439.0,0.6674]
[1643822532615,0.44109314,37447.0,37440.0,0.090276]
[1643822532813,0.44109314,37447.0,37441.0,0.036874]
[1643822533016,0.44109314,37447.0,37446.0,1.5236803]
[1643822533215,0.44109314,37447.0,37446.0,1.6605433]
[1643822533416,0.44109314,37447.0,37446.0,2.3813433]
[1643822533614,0.44109314,37447.0,37446.0,2.4313433]
[1643822534013,0.42,37447.0,37446.0,2.4313433]
[1643822534414,0.42,37447.0,37446.0,2.56486291]
[1643822534817,0.42,37447.0,37446.0,2.03032475]
[1643822536248,0.42,37447.0,37446.0,1.04118261]
[1643822536448,0.42,37447.0,37446.0,0.907663]
[1643822537447,0.42,37447.0,37446.0,1.22678852]
[1643822537647,0.42,37447.0,37446.0,1.29354788]
[1643822537847,0.42,37447.0,37446.0,1.53333146]
[1643822538847,0.42,37447.0,37446.0,1.29354788]
[1643822539149,0.42019967,37447.0,37446.0,1.29354788]
[1643822539903,0.42019967,37447.0,37446.0,1.24354788]
[1643822540502,0.42019967,37447.0,37446.0,1.29354788]
[1643822541203,0.42019967,37447.0,37446.0,1.24354788]
[1643822541601,0.42019967,37447.0,37446.0,1.16701268]
[1643822541802,0.42019967,37447.0,37446.0,1.00025332]
[1643822542002,0.42019967,37447.0,37446.0,1.10025332]
[1643822542202,0.42019967,37447.0,37446.0,1.21701233]
[1643822542802,0.42019967,37447.0,37446.0,1.31143194]
[1643822543002,0.42019967,37447.0,37446.0,1.66143194]
[1643822543654,0.42019967,37447.0,37446.0,1.31143194]
[1643822544056,0.42019967,37447.0,37446.0,1.37819094]
[1643822544256,0.42011144,37447.0,37446.0,1.37819094]
[1643822544855,0.42011144,37447.0,37446.0,1.42819094]
[1643822545060,0.42011144,37447.0,37446.0,1.87819094]
[1643822545458,0.42011144,37447.0,37446.0,1.92819094]
[1643822545858,0.00017923,37456.0,37447.0,1.65]
[1643822546059,0.001,37457.0,37453.0,0.6674]
[1643822546262,0.001,37457.0,37456.0,1.65]
[1643822546460,0.001,37457.0,37456.0,2.92232694]
[1643822546660,0.001,37457.0,37456.0,3.40149385]
[1643822547318,0.001,37457.0,37456.0,3.50149385]
[1643822547519,0.00058746,37458.0,37456.0,3.50149385]
[1643822547722,0.00058746,37458.0,37457.0,2.320974]
[1643822547919,0.00058746,37458.0,37457.0,0.924374]
[1643822548319,0.01,37459.0,37457.0,0.924374]
[1643822548521,0.01,37459.0,37458.0,1.454231]
[1643822548719,0.0104379,37459.0,37458.0,1.607631]
[1643822549521,0.00985044,37459.0,37458.0,0.857631]
[1643822550523,0.00985044,37459.0,37458.0,0.757631]
[1643822550721,0.00985044,37459.0,37458.0,0.7208]
[1643822551552,0.00985044,37459.0,37457.0,0.06674]
[1643822551553,0.23856279,37459.0,37457.0,0.06674]
[1643822551752,0.28856279,37459.0,37457.0,0.06674]
[1643822551954,0.28856279,37459.0,37454.0,0.066766]
[1643822552454,0.29516686,37455.0,37454.0,0.066766]
[1643822552656,0.29516686,37455.0,37451.0,0.133527]
[1643822552657,0.79913786,37455.0,37451.0,0.133527]
[1643822552860,0.79913786,37455.0,37447.0,0.01827983]
[1643822552861,0.1,37453.0,37447.0,0.01827983]
[1643822553054,0.353971,37452.0,37447.0,0.01827983]
[1643822553255,0.05,37451.0,37447.0,0.01827983]
[1643822553455,0.353971,37450.0,37447.0,0.01827983]
[1643822553653,1.08430695,37449.0,37447.0,0.01827983]
[1643822554053,1.13430695,37449.0,37447.0,0.01827983]
[1643822554699,1.35980534,37449.0,37442.0,0.066787]
[1643822554904,1.35980534,37449.0,37439.0,0.25944738]
[1643822555105,1.35980534,37449.0,37439.0,0.06735544]
[1643822555301,0.24680519,37444.0,37439.0,0.00056944]
[1643822555507,2.10697423,37443.0,37435.0,0.10237902]
[1643822555704,2.10697423,37443.0,37439.0,0.00056944]
[1643822556301,0.06678844,37447.0,37439.0,0.00056944]
[1643822556503,0.00060506,37448.0,37439.0,0.00056944]
[1643822556802,1.40980534,37449.0,37437.0,0.10301386]
[1643822556803,1.45980534,37449.0,37437.0,0.10301386]
[1643822557002,1.45980534,37449.0,37439.0,0.00056944]
[1643822557203,0.20963111,37447.0,37442.0,0.27767398]
[1643822557404,0.00060504,37448.0,37442.0,0.27767398]
[1643822558450,0.27794413,37448.0,37442.0,0.34445298]
[1643822558848,0.00060507,37448.0,37442.0,0.34445298]
[1643822559349,0.00011273,37446.0,37442.0,0.34445298]
[1643822561149,0.00011273,37446.0,37443.0,0.109372]
[1643822562049,0.00011273,37446.0,37443.0,0.35642993]
[1643822562304,0.00011273,37446.0,37444.0,0.209364]
[1643822562503,0.00011273,37446.0,37445.0,1.25936]
[1643822562707,0.00011273,37446.0,37445.0,1.35936]
[1643822562907,0.00011273,37446.0,37445.0,1.979526]
[1643822563110,0.00011273,37446.0,37445.0,1.479526]
[1643822564105,0.00012051,37448.0,37445.0,1.54629]
[1643822564404,0.00012051,37448.0,37446.0,0.209355]
[1643822564405,0.00072558,37448.0,37446.0,0.209355]
[1643822564605,0.00072558,37448.0,37447.0,0.862751]
[1643822564805,0.00072558,37448.0,37447.0,0.962751]
[1643822565205,0.00012051,37448.0,37447.0,0.962751]
[1643822566257,0.00012051,37448.0,37447.0,0.162751]
[1643822566758,0.00012051,37448.0,37447.0,0.0534]
[1643822567158,0.00012051,37448.0,37447.0,0.16275]
[1643822568463,0.00012051,37448.0,37447.0,0.0534]
[1643822568661,0.00012051,37448.0,37447.0,0.16275]
[1643822568861,0.00012051,37448.0,37447.0,0.76275]
[1643822569062,0.00012051,37448.0,37447.0,0.86275]
[1643822569706,0.00012051,37448.0,37447.0,0.26275]
[1643822571008,0.00012051,37448.0,37447.0,0.16275]
[1643822571504,0.00012051,37448.0,37447.0,0.0534]
[1643822573661,0.35012051,37448.0,37447.0,0.0534]
[1643822573861,0.35012051,37448.0,37445.0,0.066764]
[1643822574060,0.35012051,37448.0,37445.0,0.06670306]
[1643822575260,0.00072499,37448.0,37445.0,0.06670306]
[1643822576065,0.00012051,37448.0,37445.0,0.06670306]
[1643822576464,0.00072499,37448.0,37445.0,0.06670306]
[1643822577303,0.00012051,37448.0,37445.0,0.06670306]
[1643822577503,0.00072532,37448.0,37445.0,0.06670306]
[1643822578604,0.00012051,37448.0,37445.0,0.06670306]
[1643822578808,0.00060481,37448.0,37445.0,0.06670306]
[1643822579204,0.00016934,37447.0,37445.0,0.06670306]
[1643822583053,5.017e-05,37447.0,37445.0,0.06670306]
[1643822584060,0.353975,37446.0,37445.0,0.06670306]
[1643822584256,0.66430557,37446.0,37445.0,0.06670306]
[1643822584455,0.66430557,37446.0,37443.0,0.133528]
[1643822584708,0.29645729,37444.0,37443.0,0.133528]
[1643822585205,0.52999981,37444.0,37443.0,0.133528]
[1643822585410,0.29645729,37444.0,37443.0,0.133528]
[1643822586308,0.00059177,37448.0,37443.0,0.133528]
[1643822586907,0.7133514,37449.0,37443.0,0.133528]
[1643822587109,0.98672367,37449.0,37443.0,0.133528]
[1643822587307,0.22616469,37446.0,37443.0,0.133528]
[1643822588207,0.32616469,37446.0,37443.0,0.133528]
[1643822588856,0.32606369,37446.0,37443.0,0.11815]
[1643822590461,0.22616469,37446.0,37443.0,0.11815]
[1643822590857,0.32616469,37446.0,37443.0,0.11815]
[1643822591059,0.00060439,37448.0,37443.0,0.11815]
[1643822591261,0.00060439,37448.0,37443.0,0.11315]
[1643822591658,0.8133514,37449.0,37443.0,0.11315]
[1643822592059,0.0006044,37448.0,37443.0,0.11315]
[1643822592918,0.7133514,37449.0,37443.0,0.11315]
[1643822593217,0.00043428,37448.0,37443.0,0.11315]
[1643822594118,0.8133514,37449.0,37443.0,0.11315]
[1643822594319,9.809e-05,37447.0,37443.0,0.11315]
[1643822596954,0.00025275,37448.0,37443.0,0.11315]
[1643822597754,0.8133514,37449.0,37443.0,0.11315]
[1643822598256,0.7133514,37449.0,37443.0,0.11315]
[1643822598454,0.71317225,37449.0,37443.0,0.11315]
[1643822599259,0.81317225,37449.0,37443.0,0.11315]
[1643822599557,0.00016712,37446.0,37443.0,0.11315]
[1643822601521,0.00016712,37446.0,37443.0,0.11371839]
[1643822602521,0.00016712,37446.0,37443.0,0.11315]
[1643822602723,0.00016712,37446.0,37443.0,0.11371839]
[1643822603756,0.00016712,37446.0,37443.0,0.11315]
[1643822603957,0.00016712,37446.0,37443.0,0.11371839]
[1643822604963,0.00016712,37446.0,37443.0,0.11315]
[1643822605157,0.00016712,37446.0,37443.0,0.11371839]
[1643822606161,0.00016712,37446.0,37443.0,0.11315]
[1643822606359,0.00016712,37446.0,37443.0,0.11371839]
[1643822607421,0.00016712,37446.0,37443.0,0.11315]
[1643822607626,0.00016712,37446.0,37443.0,0.11371839]
[1643822608620,0.00016712,37446.0,37443.0,0.11315]
[1643822608820,0.00016712,37446.0,37443.0,0.11371839]
[1643822609825,0.00016712,37446.0,37443.0,0.11315]
[1643822613459,0.00016712,37446.0,37443.0,0.11371751]
[1643822614558,0.00016712,37446.0,37443.0,0.11315]
[1643822614811,0.00016712,37446.0,37443.0,0.11371751]
[1643822615809,0.00016712,37446.0,37443.0,0.11315]
[1643822616010,0.00016712,37446.0,37443.0,0.11371751]
[1643822617013,0.00016712,37446.0,37443.0,0.11315]
[1643822617213,0.00016712,37446.0,37443.0,0.11371751]
[1643822618118,0.00016712,37446.0,37443.0,0.11315]
[1643822618316,0.00016712,37446.0,37443.0,0.1136454]
[1643822619460,0.00016712,37446.0,37443.0,0.11307789]
[1643822619661,0.00016712,37446.0,37443.0,0.1136454]
[1643822620562,0.00016712,37446.0,37443.0,0.11307789]
[1643822620765,0.00016712,37446.0,37443.0,0.1136454]
[1643822621769,0.00016712,37446.0,37443.0,0.11307789]
[1643822621966,0.00016712,37446.0,37443.0,0.00056751]
[1643822622417,0.353975,37445.0,37443.0,0.00056751]
[1643822622617,1.75,37444.0,37443.0,0.00056751]
[1643822622818,2.236197,37444.0,37443.0,0.00056751]
[1643822623020,2.40775203,37444.0,37438.0,0.133581]
[1643822623217,0.35914599,37440.0,37438.0,0.133581]
[1643822623419,0.353975,37439.0,37438.0,0.133581]
[1643822624814,0.61062462,37439.0,37438.0,0.133581]
[1643822627563,0.06679793,37443.0,37438.0,0.133581]
[1643822627762,0.71317225,37442.0,37438.0,0.133581]
[1643822628764,0.71317225,37442.0,37440.0,0.37101766]
[1643822630321,0.71317225,37442.0,37441.0,0.6034]
[1643822630516,0.71317225,37442.0,37441.0,0.712782]
[1643822631317,0.71317225,37442.0,37441.0,0.779561]
[1643822631716,0.71317225,37442.0,37441.0,0.229561]
[1643822634160,0.71335672,37442.0,37441.0,0.229561]
[1643822636061,0.71335672,37442.0,37441.0,0.579561]
[1643822636659,0.71335672,37442.0,37441.0,0.679561]
[1643822636861,0.71335672,37442.0,37441.0,1.346961]
[1643822637064,0.71335672,37442.0,37441.0,2.196961]
[1643822637311,0.31277272,37442.0,37441.0,1.846961]
[1643822637512,0.31277272,37442.0,37441.0,1.346961]
[1643822637911,0.00043389,37450.0,37447.0,0.269316]
[1643822638111,0.00043389,37450.0,37448.0,0.229509]
[1643822638311,0.00043389,37450.0,37449.0,0.109341]
[1643822638511,0.00043389,37450.0,37449.0,0.162741]
[1643822638711,0.02143338,37454.0,37449.0,0.162741]
[1643822638914,0.00043396,37451.0,37449.0,0.30582051]
[1643822639110,0.00043396,37451.0,37449.0,0.0534]
[1643822639910,0.00017915,37452.0,37449.0,0.0534]
[1643822640112,0.00061311,37452.0,37449.0,0.120166]
[1643822640513,7.558e-05,37452.0,37449.0,0.120166]
[1643822641173,0.23105709,37453.0,37449.0,0.120166]
[1643822641572,0.00017915,37454.0,37449.0,0.120166]
[1643822641771,0.38940967,37455.0,37449.0,0.120166]
[1643822641772,0.43958882,37455.0,37449.0,0.120166]
[1643822641970,0.24666778,37451.0,37449.0,0.120166]
[1643822642371,0.79782432,37450.0,37449.0,0.120166]
[1643822642571,0.79782432,37450.0,37449.0,0.11967877]
[1643822642970,1.15179932,37450.0,37449.0,0.11967877]
[1643822643171,1.15179932,37450.0,37449.0,0.06627877]
[1643822643574,1.54803618,37450.0,37447.0,0.066764]
[1643822643774,0.33939051,37448.0,37442.0,0.15318724]
[1643822643973,1.37921432,37447.0,37442.0,0.15318724]
[1643822644175,0.69336551,37446.0,37442.0,0.15318724]
[1643822644371,0.91252964,37445.0,37442.0,0.15318724]
[1643822644573,0.60208802,37444.0,37442.0,0.133575]
[1643822644820,0.62137554,37443.0,37442.0,0.1341433]
[1643822645020,1.42137554,37443.0,37442.0,0.1341433]
[1643822646023,1.42137554,37443.0,37442.0,0.133575]
[1643822647224,2.22245554,37443.0,37442.0,0.133575]
[1643822649263,1.42263141,37443.0,37442.0,0.133575]
[1643822649565,1.06865641,37443.0,37442.0,0.133575]
[1643822650261,1.11865641,37443.0,37442.0,0.133575]
[1643822651062,1.06865641,37443.0,37442.0,0.133575]
[1643822651262,1.47263141,37443.0,37442.0,0.133575]
[1643822655967,0.80125587,37443.0,37442.0,0.133575]
[1643822656668,0.80125587,37443.0,37442.0,1.246348]
[1643822656868,0.80125587,37443.0,37442.0,1.50131572]
[1643822657365,0.80125587,37443.0,37442.0,1.60131572]
[1643822663668,0.80125587,37443.0,37442.0,2.05131572]
[1643822663867,0.04651956,37443.0,37442.0,2.05131572]
[1643822664664,0.0202952,37448.0,37443.0,1.65]
[1643822664868,0.0202952,37448.0,37447.0,1.68995982]
[1643822665072,0.00017915,37453.0,37448.0,1.25]
[1643822665267,0.00985044,37459.0,37449.0,0.67995564]
[1643822665268,0.00017915,37458.0,37449.0,0.67995564]
[1643822665473,0.00563339,37459.0,37450.0,0.109332]
[1643822665670,0.00563339,37459.0,37455.0,0.22686407]
[1643822665868,0.00563339,37459.0,37456.0,0.25539028]
[1643822666069,0.00563339,37459.0,37456.0,0.14608328]
[1643822666369,0.00563339,37459.0,37456.0,0.24608328]
[1643822666668,0.00563339,37459.0,37457.0,0.109304]
[1643822666870,0.00563339,37459.0,37458.0,0.0534]
[1643822667070,0.00563339,37459.0,37458.0,0.162699]
[1643822667518,0.00563339,37459.0,37458.0,0.41927147]
[1643822667815,0.00563339,37459.0,37458.0,0.51927147]
[1643822668021,0.00563339,37459.0,37458.0,0.329448]
[1643822668814,0.00563339,37459.0,37458.0,0.229448]
[1643822669016,0.00563339,37459.0,37458.0,0.0534]
[1643822669616,0.70563339,37459.0,37458.0,0.0534]
[1643822669819,1.01256736,37459.0,37458.0,0.0534]
[1643822670020,0.96256736,37459.0,37458.0,0.0534]
[1643822670422,0.96256736,37459.0,37456.0,0.066751]
[1643822670979,0.96256736,37459.0,37454.0,0.133502]
[1643822670980,0.30982789,37457.0,37450.0,0.13410651]
[1643822671175,0.68501893,37456.0,37450.0,0.133532]
[1643822671375,0.68501893,37456.0,37450.0,0.13410651]
[1643822671376,0.33104393,37456.0,37450.0,0.13410651]
[1643822671675,0.05,37455.0,37450.0,0.13410651]
[1643822671878,0.99148539,37451.0,37450.0,0.13410651]
[1643822672076,1.23791131,37451.0,37450.0,0.13410651]
[1643822672279,1.64188631,37451.0,37450.0,0.133532]
[1643822672480,1.54188631,37451.0,37449.0,0.00053588]
[1643822672678,2.10646447,37450.0,37449.0,0.00053588]
[1643822672877,2.90754447,37450.0,37449.0,0.00053588]
[1643822673578,2.90754447,37450.0,37445.0,0.066785]
[1643822673781,1.803975,37449.0,37448.0,0.00053589]
[1643822674077,2.605055,37449.0,37448.0,0.00053589]
[1643822674278,2.655055,37449.0,37448.0,0.00053589]
[1643822674719,2.655055,37449.0,37443.0,0.01874876]
[1643822675015,0.64035298,37448.0,37447.0,0.00053591]
[1643822675216,1.44143298,37448.0,37447.0,0.00053591]
[1643822675615,1.84143298,37448.0,37447.0,0.00053591]
[1643822675821,1.84143298,37448.0,37443.0,0.01874876]
[1643822676116,0.7,37444.0,37443.0,0.01874876]
[1643822676320,1.22804234,37444.0,37443.0,0.01874876]
[1643822676617,1.31216647,37444.0,37443.0,0.01874876]
[1643822676818,1.31216647,37444.0,37442.0,0.133566]
[1643822677018,0.2378726,37443.0,37442.0,0.133566]
[1643822677217,0.2378726,37443.0,37442.0,0.13403817]
[1643822677518,0.6878726,37443.0,37442.0,0.13403817]
[1643822678326,0.80108,37448.0,37442.0,0.133566]
[1643822679375,0.22929462,37446.0,37442.0,0.133566]
[1643822679576,0.00015785,37444.0,37443.0,0.066778]
[1643822679777,0.00015785,37444.0,37443.0,0.06725948]
[1643822679975,0.00015785,37444.0,37443.0,0.00048148]
[1643822680774,0.00015785,37444.0,37442.0,0.133566]
[1643822680979,0.00015785,37444.0,37443.0,0.109369]
[1643822681176,0.00015785,37444.0,37443.0,0.33318698]
[1643822682718,0.00015785,37444.0,37442.0,0.1340475]
[1643822683117,0.00015785,37444.0,37442.0,0.133566]
[1643822683717,0.00015785,37444.0,37442.0,0.36486057]
[1643822684117,1.03827175,37448.0,37442.0,0.36486057]
[1643822685119,0.80123785,37448.0,37443.0,0.200327]
[1643822686365,0.80123785,37448.0,37443.0,0.133552]
[1643822686966,0.80123785,37448.0,37444.0,0.00057374]